Cogmind - Beta 13 @@@ ROGUE MODE // 2024.04.17 @ 01:56:10 Player: GregoriusTechneticies Result: Destroyed by G-47 Trooper with Particle Gun Performance ------------- Evolutions (2) 1000 Regions Visited (3) 600 Robots Destroyed (88) 440 Value Destroyed (1207) 1207 Prototype IDs (1) 20 Alien Tech Used (0) 0 Bonus (0) 0 TOTAL SCORE: 3267 Bonus ------- None Cogmind --------- Core Integrity 0/550 Matter 247/300 Energy 81/100 System Corruption 0% Temperature Cool (9) Movement Core (50) Location -8/Materials Parts ------- > --- POWER (1) -------- (None) > --- PROPULSION (2) --- (None) > --- UTILITY (6) ------ (None) > --- WEAPON (2) ------- (None) > --- INVENTORY (5) ---- Weight Redist. System Sensor Array Melee Analysis Suite Melee Analysis Suite Hacking Suite Peak State ------------ > --- POWER ------------ Light Nuclear Core > --- PROPULSION ------- Wheel Wheel > --- UTILITY ---------- Small Storage Unit Machine Analyzer Visual Processing Unit Improved Sensor Array Signal Interpreter Utility Shielding > --- WEAPON ----------- Improved Assault Rifle Improved Assault Rifle > --- INVENTORY -------- Wheel Weight Redist. System Structural Scanner Sensor Array Transport Network Coupler Melee Analysis Suite Hacking Suite Great Maul [Rating: 23] Favorites ----------- Power Light Nuclear Core Engine Light Ion Engine Power Core Light Nuclear Core Propulsion Wheel Wheel Wheel Utility Small Storage Unit Device Seismic Detector Storage Small Storage Unit Processor Signal Interpreter Protection Utility Shielding Weapon Heavy Assault Rifle Ballistic Gun Heavy Assault Rifle Impact Weapon Great Maul Slashing Weapon Katana Build | -11 -10 -9 -8 ------- Run | Yrd Mat Mat Mat Slots Evolved 4 | . . 2 2 Power . | . . . . Propulsion . | . . . . Utility 4 | . . 2 2 Weapon . | . . . . Parts Attached 66 | 8 14 22 22 Power 9 | 1 1 1 6 Engine 4 | 1 . 1 2 Core 5 | . 1 . 4 Reactor . | . . . . Propulsion 19 | 3 7 5 4 Treads . | . . . . Leg . | . . . . Wheel 19 | 3 7 5 4 Hover . | . . . . Flight . | . . . . Utility 20 | 2 2 10 6 Device 11 | 1 1 6 3 Storage 3 | 1 1 1 . Processor 3 | . . 1 2 Hackware . | . . . . Protection 3 | . . 2 1 Artifact . | . . . . Weapon 18 | 2 4 6 6 Energy Gun . | . . . . Energy Cannon . | . . . . Ballistic Gun 13 | 2 3 3 5 Ballistic Cannon . | . . . . Launcher . | . . . . Special Weapon 1 | . . . 1 Impact Weapon 3 | . 1 2 . Slashing Weapon 1 | . . 1 . Piercing Weapon . | . . . . Special Melee Weapon . | . . . . Unidentified Prototypes 1 | . . 1 . Parts Lost 22 | . 2 7 13 Power 6 | . 1 1 4 Propulsion 5 | . . 2 3 Utility 5 | . . 2 3 Weapon 6 | . 1 2 3 Highest Loss Streak 12 | . 1 5 12 To Critical Strikes . | . . . . Average Slot Usage (%) 93 | . 94 95 89 Engine 2 | . 2 3 3 Core 6 | . 8 6 3 Wheel 22 | . 28 20 15 Device 14 | . 14 17 8 Storage 11 | . 14 11 9 Processor 9 | . . 11 25 Protection 2 | . . 2 8 Ballistic Gun 19 | . 24 16 15 Impact Weapon 2 | . 1 3 . Naked Turns 1 | . . . 1 Heaviest Build 18 | 12 17 18 18 Greatest Support 20 | 20 20 20 20 Greatest Overweight (x) 5 | 1 . 5 3 Average Overweight (x) . | . . . . Largest Inventory Capacity 8 | 8 8 8 8 Average Capacity 7 | 7 8 8 7 Most Carried 8 | 8 8 8 8 Average Carried 7 | 5 7 7 7 Final Capacity 8 | 8 8 8 5 Final Carried 8 | 8 8 8 5 Class Distribution -------------------- 42% | Scavenger-Mutant 28% | Mutant 28% | Scavenger-Skirmisher Dominant Class ---------------- Scavenger-Mutant | -10/Materials Scavenger-Mutant | -9/Materials Scavenger-Skirmisher | -8/Materials Resources | -11 -10 -9 -8 ----------- Run | Yrd Mat Mat Mat Matter Collected 1765 | 460 390 645 270 Remotely . | . . . . Salvage Created 2959 | 328 766 1591 274 Parts 204 | 32 63 89 20 Haulers Intercepted 5 | . 1 3 1 Recyclers Shooed 24 | . 13 11 . Parts Field Recycled . | . . . . Retrieved Matter . | . . . . Parts Self-Destructed . | . . . . Prevented . | . . . . Kills | -11 -10 -9 -8 ------- Run | Yrd Mat Mat Mat Combat Hostiles Destroyed 27 | . 8 16 3 Melee 1 | . . 1 . Guns 23 | . 8 12 3 Classes Destroyed 12 | 3 6 3 . Worker 17 | 4 4 8 1 Builder 8 | . 4 3 1 Tunneler 10 | 9 1 . . Hauler 5 | . 1 3 1 Recycler 12 | 1 4 7 . Mechanic 2 | . . 1 1 Operator 1 | . 1 . . Watcher 6 | . 3 3 . Swarmer 7 | . 3 4 . Grunt 16 | . 5 9 2 Duelist 2 | . . 2 . Sentry 2 | . . 1 1 Best Kill Streak 17 | 4 11 17 5 Combat Bots Only 10 | . 3 10 1 Max Kills in Single Turn 2 | 1 2 2 1 Gunslinging 1 | . . 1 . Exploded . | . . . . Melee 1 | . . 1 . Uniques/NPCs Destroyed . | . . . . Combat | -11 -10 -9 -8 -------- Run | Yrd Mat Mat Mat Hostile Shots Fired 259 | . 66 73 120 Missed 68 | . 23 14 31 Damage Taken 2606 | . 465 784 1357 Core 957 | . 121 276 560 Absorbed by Shields . | . . . . Redirected to Shielding 54 | . . 4 50 Core Remaining (%) 60 | 100 51 31 . Volleys Fired 236 | 45 73 90 28 Largest 2 | 2 2 2 2 Hottest 46 | 40 40 46 46 Shots Fired 425 | 90 139 140 56 Gun 425 | 90 139 140 56 Cannon . | . . . . Launcher . | . . . . Special . | . . . . Kinetic 425 | 90 139 140 56 Thermal . | . . . . Explosive . | . . . . Electromagnetic . | . . . . Robot Hit Streak 19 | 12 7 19 16 Robot Miss Streak 5 | 3 3 2 5 Penetration Max . | . . . . Secondary Targets 4 | . 2 2 . Max Gunslinging Chain 1 | . 1 1 . Shots Hit Robots 283 | 56 78 116 33 Core Hits 123 | 21 42 47 13 Critical Kills . | . . . . Critical Parts Destroyed 5 | . 1 3 1 Critical Strikes 6 | . 1 4 1 Destroy 2 | . 1 . 1 Smash 3 | . . 3 . Sever 1 | . . 1 . Melee Attacks 21 | . . 21 . Impact 17 | . . 17 . Slashing 4 | . . 4 . Piercing . | . . . . Sneak Attacks 1 | . . 1 . Combat Hostiles . | . . . . Follow-up Attacks 2 | . . 2 . Damage Inflicted 4036 | 559 885 2094 498 Guns 3507 | 559 885 1565 498 Cannons . | . . . . Explosions . | . . . . Melee 529 | . . 529 . Ramming . | . . . . Kinetic 3507 | 559 885 1565 498 Thermal . | . . . . Explosive . | . . . . Electromagnetic . | . . . . Impact 499 | . . 499 . Slashing 30 | . . 30 . Piercing . | . . . . Highest Corruption 1 | . 1 . . Average Corruption 1 | . 1 . . Corruption Purged . | . . . . Corruption Blocked . | . . . . Effects 4 | . 4 . . Matter Fused 2 | . 2 . . Heat Flow Errors 1 | . 1 . . Weapon Failures 1 | . 1 . . Overload Shots . | . . . . Overflow Damage 217 | . . 217 . Projectiles . | . . . . Explosions . | . . . . Melee 217 | . . 217 . Knockbacks 3 | . . 3 . Impact 3 | . . 3 . Kinetic . | . . . . Secondary . | . . . . Self-Inflicted Damage . | . . . . Shots . | . . . . Rammed . | . . . . Targets Rammed . | . . . . Kicked . | . . . . Crushed . | . . . . Highest Temperature 133 | . 133 15 14 Average Temperature 10 | . 11 5 8 Received Heat Transfer 1176 | . 186 261 729 Siege Activations . | . . . . Robots Corrupted . | . . . . Combat Hostiles . | . . . . Parts Fried . | . . . . Impact Corruptions 8 | . . 8 . Robots Melted . | . . . . Combat Hostiles . | . . . . Parts Melted . | . . . . Heat Transferred . | . . . . Parts Sabotaged . | . . . . Parts Stolen . | . . . . Parts Stripped . | . . . . Power Chain Reactions . | . . . . Alert | -11 -10 -9 -8 ------- Run | Yrd Mat Mat Mat Peak Influence 398 | 70 266 398 296 Initial 104 | . 45 61 104 Average 153 | 33 152 192 202 Maximum Alert Level 1 | . 1 1 1 Low Security (%) 67 | 100 71 58 44 Level 1 32 | . 28 41 55 Level 2 . | . . . . Level 3 . | . . . . Level 4 . | . . . . Level 5 . | . . . . High Security . | . . . . Max Security . | . . . . Squads Dispatched 1 | . . . 1 Investigation 1 | . . . 1 Extermination . | . . . . Reinforcement . | . . . . Assault . | . . . . Garrison . | . . . . Intercept . | . . . . Searches Triggered . | . . . . Construction Impeded . | . . . . Haulers Reinforced . | . . . . Active Scanning Responses . | . . . . Cargo Convoy Interrupts . | . . . . Stealth | -11 -10 -9 -8 --------- Run | Yrd Mat Mat Mat Distress Signals 4 | . 1 3 . Communications Jammed . | . . . . Distress Signals . | . . . . Times Spotted 52 | . 16 21 15 Peak Tracking Total 6 | . 6 5 6 Tactical Retreats 3 | . 1 . 2 Traps | -11 -10 -9 -8 ------- Run | Yrd Mat Mat Mat Traps Triggered 6 | . . . 6 Indirectly . | . . . . Trap Hack Attempts . | . . . . Triggered . | . . . . Disarmed . | . . . . Reprogrammed . | . . . . Reused . | . . . . Traps Extracted . | . . . . Installed . | . . . . Triggered . | . . . . Machines | -11 -10 -9 -8 ---------- Run | Yrd Mat Mat Mat Machines Disabled 1 | . . 1 . Max in Single Turn 1 | . . 1 . Machines Repaired . | . . . . Machines Dismantled . | . . . . Machines Sabotaged . | . . . . Overloaded Fab Kills . | . . . . Hacking | -11 -10 -9 -8 --------- Run | Yrd Mat Mat Mat Machines Accessed 7 | . 3 2 2 Terminals 7 | . 3 2 2 Fabricators . | . . . . Repair Stations . | . . . . Recycling Units . | . . . . Scanalyzers . | . . . . Garrison Access . | . . . . Total Hacks 19 | . 6 6 7 Successful 9 | . 2 3 4 Failed 10 | . 4 3 3 Catastrophic 5 | . 3 . 2 Database Lockouts . | . . . . Manual 19 | . 6 6 7 Terminals 19 | . 6 6 7 Fabricators . | . . . . Repair Stations . | . . . . Recycling Units . | . . . . Scanalyzers . | . . . . Garrison Access . | . . . . Terminal Hacks 3 | . . 1 2 Level Access Points 2 | . . 1 1 Terminal Index 1 | . . . 1 Fabricator Hacks . | . . . . Repair Station Hacks . | . . . . Recycling Unit Hacks . | . . . . Scanalyzer . | . . . . Garrison Access Hacks . | . . . . Unauthorized Hacks 6 | . 2 2 2 Terminals 6 | . 2 2 2 Botnet 6 | . 2 2 2 Fabricators . | . . . . Repair Stations . | . . . . Recycling Units . | . . . . Scanalyzers . | . . . . Garrison Access . | . . . . Data Cores Recovered 1 | . 1 . . Used . | . . . . Hacking Detections 7 | . 3 2 2 Full Trace Events 3 | . 2 . 1 Feedback Events 1 | . 1 . . Corruption 1 | . 1 . . Feedback Blocked . | . . . . Robot Schematics Acquired . | . . . . Robots Built . | . . . . Authchips . | . . . . Time . | . . . . Total Robot Build Rating . | . . . . Part Schematics Acquired . | . . . . Parts Built . | . . . . Authchips . | . . . . Time . | . . . . Total Part Build Rating . | . . . . Parts Repaired . | . . . . Time . | . . . . Parts Recycled . | . . . . Recycled Matter . | . . . . Retrieved Matter . | . . . . Retrieved Components . | . . . . Parts Scanalyzed . | . . . . Part Schematics Acquired . | . . . . Parts Damaged . | . . . . Bothacking | -11 -10 -9 -8 ------------ Run | Yrd Mat Mat Mat Used RIF Installer . | . . . . Robots Hacked . | . . . . Non-combat . | . . . . Combat . | . . . . Robot Hacks Applied . | . . . . Relay Couplers Released . | . . . . Fabnet Peak Effective % . | . . . . Robots Rewired . | . . . . Allies Hacked . | . . . . Hacks Repelled . | . . . . Allies | -11 -10 -9 -8 -------- Run | Yrd Mat Mat Mat Total Allies . | . . . . Largest Group . | . . . . Highest-Rated Group . | . . . . Highest-Rated Ally . | . . . . Total Orders . | . . . . Ally Attacks . | . . . . Total Damage . | . . . . Kills . | . . . . Allies Corrupted . | . . . . Allies Melted . | . . . . Intel | -11 -10 -9 -8 ------- Run | Yrd Mat Mat Mat Robot Analysis Total . | . . . . Derelict Logs Recovered . | . . . . Drone Launches . | . . . . Drone Recoveries . | . . . . Exploration | -11 -10 -9 -8 ------------- Run | Yrd Mat Mat Mat Turns Passed 2016 | 370 551 806 289 Spaces Moved 1294 | 271 382 469 172 Core 28 | 5 . 11 12 Treads . | . . . . Legs . | . . . . Wheels 1266 | 266 382 458 160 Hover . | . . . . Flight . | . . . . Fastest Speed 50 | 50 80 80 80 Average Speed 82 | 80 80 83 84 Slowest Speed 300 | 95 80 300 200 Overloaded Moves . | . . . . Propulsion Burnouts . | . . . . Robots Hopped . | . . . . Cave-ins Triggered . | . . . . Exploration Rate (%) 24 | 6 48 27 17 Regions Visited 3 Branch Regions . Pre-discovered Areas . | . . . . Known Exits Taken 1 | . . 1 . Unknown Exits Taken 2 | 1 1 . . Scrap Searched . | . . . . Spaces Dug . | . . . . Terrain Destroyed . | . . . . Melee . | . . . . Projectile . | . . . . AOE . | . . . . Terrain Rammed . | . . . . Walls Destroyed . | . . . . Machines Disabled . | . . . . Actions | -11 -10 -9 -8 --------- Run | Yrd Mat Mat Mat Total 1823 | 345 511 713 254 Wait 112 | . 3 86 23 Move 1291 | 270 381 468 172 Hop . | . . . . Pick Up 51 | 16 16 14 5 Fast Attach 28 | 4 3 7 14 Attach 13 | 3 1 6 3 Detach . | . . . . Swap 25 | 1 10 9 5 Drop 50 | 6 24 16 4 Fire 236 | 45 73 90 28 Melee 17 | . . 17 . Ram . | . . . . Kick . | . . . . Crush . | . . . . Escape Stasis . | . . . . Rewire . | . . . . Trap . | . . . . Miscellaneous . | . . . . Route ------- -11/Scrapyard -10/Materials -9/Materials (discovered 4 exits: *Mat x3 / [*Min]) -8/Materials (discovered 4 exits: Fac x3 / [*Sto]) History --------- Turn | Location | Event 43 | -11/Scrapyard | Discovered new exit (range 16) 371 | -11/Scrapyard | Entered Materials 372 | -10/Materials | Build established: Mutant 818 | -10/Materials | Build established: Scavenger-Mutant 915 | -10/Materials | Discovered new exit (range 10) 922 | -10/Materials | Entered another Materials area 922 | -9/Materials | Evolved 2 slots: Utility x2 1019 | -9/Materials | Identified exit to Materials 1416 | -9/Materials | Destroyed 10 combat bots 1436 | -9/Materials | Core integrity fell below 50% 1498 | -9/Materials | Lost 5 parts (1p2n1u1w) 1554 | -9/Materials | Discovered new exit (range 16) 1728 | -9/Materials | Entered another Materials area 1728 | -8/Materials | Evolved 2 slots: Utility x2 1789 | -8/Materials | Identified exit to Factory 1939 | -8/Materials | Discovered new exit (range 8) 1995 | -8/Materials | Core integrity fell below 50% 2010 | -8/Materials | Core integrity fell below 20% 2017 | -8/Materials | Destroyed by G-47 Trooper with Particle Gun Last Messages --------------- 01997_ G-47 Trooper destroyed. 01997_ Acquired Imp. Sensor Array. 01998_ Acquired 49 matter. 01999_ U-05 Engineer destroyed. 02001_ U-05 Engineer lays Concrete. 02001_ Critical hit (Burn: +37). 02003_ Acquired Wheel. 02005_ Wheel destroyed. 02005_ Acquired Lgt. Ion Engine. 02007_ Utility Shielding destroyed. 02007_ Imp. Sensor Array destroyed. 02007_ Lgt. Ion Engine destroyed. 02009_ Acquired Lgt. Nuclear Core. 02011_ Critical hit (Burn: +37). 02012_ Acquired Welding Torch. 02012_ Welding Torch destroyed. 02013_ Lgt. Nuclear Core destroyed. 02015_ Critical hit (Burn: +37). 02016_ G-47 Trooper destroyed. 02016_ Sml. Storage Unit destroyed. Map ----- +----------------------------------------------------+ | ?????????????????????????????????????????????????? | | ???????????????????????????????????????"""?"""???? | | ???????????????????????????????????????"""?"""???? | | ???????????????????????????????????????"""?"""???? | | ?????????????????????????????????????????????????? | | ????T?????????????????????????????????###?##?????? | | ??????????????????????????????????????# ??????? | | ???????????????????????? ?????????????# ??????? | | ??????"????????????????? ?????????????# ???????? | | ?????"""???????????????? ?????????????# ????????? | | ?????"""???????????????? #???#####????# #????????? | | ?????"""???????????????# #???# ###### #????????? | | ??????""?????????